fUST/lending_fUST_20260219
["ID","MTS","AMOUNT","RATE_DAILY","PERIOD"]
[405988934,1771507847529,-62296.81617761,0.00025182,2]
[405988935,1771507847539,-151.0,0.00025182,2]
[405988936,1771507847548,-151.0,0.00025182,2]
[405988937,1771507847558,-151.0,0.00025182,2]
[405988938,1771507847569,-151.0,0.00025182,2]
[405988939,1771507847580,-151.0,0.00025182,2]
[405988940,1771507847589,-13652.08422462,0.00025285,2]
[405988941,1771507847599,-285.0,0.000253,2]
[405988942,1771507847610,-344.63,0.00025333,3]
[405988943,1771507847619,-151.0,0.00025343,2]
[405988944,1771507847629,-500.0,0.00025343,19]
[405988945,1771507847638,-7741.32013535,0.00025343,2]
[405988946,1771507847648,-521.67018461,0.00025351,2]
[405988947,1771507847658,-168.0,0.00025355,2]
[405988948,1771507847667,-743.60641596,0.00025356,2]
[405988949,1771507847769,-500.0,0.00025374,19]
[405988950,1771507847781,-500.0,0.00025374,19]
[405988951,1771507847791,-500.0,0.00025384,19]
[405988952,1771507847801,-450.72101836,0.00025384,19]
[405988953,1771507847809,-500.0,0.00025384,19]
[405988954,1771507847819,-500.0,0.00025384,19]
[405988955,1771507847828,-612.31208511,0.00025384,19]
[405988956,1771507847838,-600498.59459536,0.00025385,2]
[405988957,1771507847847,-691.041673,0.00025385,2]
[405988958,1771507847856,-691.041673,0.00025385,2]
[405988959,1771507847866,-691.041673,0.00025385,2]
[405988960,1771507847875,-691.041673,0.00025385,2]
[405988961,1771507847884,-151.0,0.00025385,2]
[405988962,1771507847894,-151.0,0.00025385,2]
[405988963,1771507847903,-151.0,0.00025385,2]
[405988964,1771507847912,-169.508869,0.00025385,2]
[405988965,1771507847922,-151.0,0.00025385,2]
[405988966,1771507847931,-151.0,0.00025385,2]
[405988967,1771507847940,-151.0,0.00025385,2]
[405988968,1771507847950,-487.0,0.00025385,2]
[405988969,1771507847959,-487.0,0.00025385,2]
[405988970,1771507847968,-487.0,0.00025385,2]
[405988971,1771507847977,-487.0,0.00025385,2]
[405988972,1771507847986,-487.0,0.00025385,2]
[405988973,1771507847996,-487.0,0.00025385,2]
[405988974,1771507848005,-487.0,0.00025385,2]
[405988975,1771507848015,-487.0,0.00025385,2]
[405988976,1771507848025,-487.0,0.00025385,2]
[405988977,1771507848034,-487.0,0.00025385,2]
[405988978,1771507848043,-487.0,0.00025385,2]
[405988979,1771507848052,-487.0,0.00025385,2]
[405988980,1771507848061,-487.0,0.00025385,2]
[405988981,1771507848071,-629.54,0.00025385,2]
[405988982,1771507848080,-151.0,0.000254,13]
[405988983,1771507848090,-151.0,0.000254,11]
[405988984,1771507848099,-151.0,0.000254,20]
[405988985,1771507848107,-691.041673,0.000254,2]
[405988986,1771507848116,-691.041673,0.000254,2]
[405988987,1771507848126,-691.041673,0.000254,2]
[405988988,1771507848135,-691.041673,0.000254,2]
[405988989,1771507848144,-151.0,0.000254,2]
[405988990,1771507848153,-151.0,0.000254,2]
[405988991,1771507848163,-151.0,0.000254,2]
[405988992,1771507848172,-175.8388,0.000254,2]
[405988993,1771507848181,-648.3687036,0.00025435,5]
[405988994,1771507848191,-295891.74368962,0.00025436,2]
[405988995,1771507848200,-691.041673,0.00025436,2]
[405988996,1771507848209,-691.041673,0.00025436,2]
[405988997,1771507848218,-691.041673,0.00025436,2]
[405988998,1771507848228,-691.041673,0.00025436,2]
[405988999,1771507848237,-151.0,0.00025436,2]
[405989000,1771507848246,-151.0,0.00025436,2]
[405989001,1771507848256,-151.0,0.00025436,2]
[405989002,1771507848265,-151.0,0.00025436,2]
[405989003,1771507848275,-151.0,0.00025436,2]
[405989004,1771507848285,-500.0,0.00025448,2]
[405989005,1771507848294,-168.0,0.0002548,2]
[405989006,1771507848303,-2222.40712829,0.00025497,2]
[405989007,1771507848312,-151.0,0.000255,12]
[405989008,1771507848321,-151.0,0.000255,10]
[405989009,1771507848330,-151.0,0.000255,12]
[405989010,1771507848339,-151.0,0.000255,18]
[405989011,1771507848347,-1152.0,0.00025511,2]
[405989012,1771507848356,-416.2733357,0.00025515,2]
[405989013,1771507848365,-500.0,0.00025534,2]
[405989014,1771507848374,-9441.7030804,0.00025585,2]
[405989015,1771507848384,-1437.2609675,0.00025585,2]
[405989016,1771507848394,-457.1678196,0.00025585,2]
[405989017,1771507848403,-19671.9384058,0.00025585,2]
[405989018,1771507848412,-525.49,0.00025585,2]
[405989019,1771507848422,-181.0,0.00025585,2]
[405989020,1771507848431,-500.0,0.00025589,2]
[405989021,1771507848440,-151.0,0.000256,15]
[405989022,1771507848449,-151.0,0.000256,12]
[405989023,1771507848458,-151.0,0.000256,13]
[405989024,1771507848468,-151.0,0.000256,12]
[405989025,1771507848477,-151.0,0.000256,15]
[405989026,1771507848486,-2099062.48652765,0.00025641,2]
[405989027,1771507848496,-571.92771069,0.00025644,2]
[405989028,1771507848505,-549070.80351009,0.00025693,2]
[405989029,1771507848514,-691.041673,0.00025693,2]
[405989030,1771507848525,-691.041673,0.00025693,2]
[405989031,1771507848534,-691.041673,0.00025693,2]
[405989032,1771507848543,-691.041673,0.00025693,2]
[405989033,1771507848552,-151.0,0.00025693,2]
[405989034,1771507848563,-151.0,0.00025693,2]
[405989035,1771507848576,-151.0,0.000257,12]
[405989036,1771507848586,-490.82,0.000257,14]
[405989037,1771507848595,-690.05279851,0.0002571,2]
[405989038,1771507848604,-296.8483703,0.0002571,2]
[405989039,1771507848615,-521.30931541,0.0002571,2]
[405989040,1771507848624,-534.32706655,0.0002571,2]
[405989041,1771507848634,-184.65408669,0.0002571,2]
[405989042,1771507848643,-738.61634677,0.0002571,2]
[405989043,1771507848652,-292.0394959,0.0002571,2]
[405989044,1771507848661,-938.35676774,0.0002571,2]
[405989045,1771507848670,-387.12014641,0.00025713,2]
[405989046,1771507848680,-36085.46272994,0.00025713,2]
[405989047,1771507848689,-29363.11980095,0.00025713,2]
[405989048,1771507848698,-691.041673,0.00025713,2]
[405989049,1771507848707,-691.041673,0.00025713,2]
[405989050,1771507848715,-691.041673,0.00025713,2]
[405989051,1771507848724,-691.041681,0.00025713,2]
[405989052,1771507848734,-282.010342,0.00025713,2]
[405989053,1771507848743,-151.0,0.00025713,2]
[405989054,1771507848753,-3011.86,0.0002574,4]
[405989055,1771507848762,-1661.88678023,0.00025766,2]
[405989056,1771507848771,-151.0,0.00025782,2]
[405989057,1771507848780,-350.0,0.00025782,3]
[405989058,1771507848789,-350.0,0.00025782,3]
[405989059,1771507848798,-350.0,0.00025782,3]
[405989060,1771507848807,-630.0,0.00025782,3]
[405989061,1771507848817,-350.0,0.00025782,3]
[405989062,1771507848826,-630.0,0.00025782,3]
[405989063,1771507848835,-350.0,0.00025782,3]
[405989064,1771507848844,-630.0,0.00025782,3]
[405989065,1771507848853,-350.0,0.00025782,3]
[405989066,1771507848863,-630.0,0.00025782,3]
[405989067,1771507848873,-350.0,0.00025782,3]
[405989068,1771507848884,-630.0,0.00025782,3]
[405989069,1771507848893,-350.0,0.00025782,3]
[405989070,1771507848903,-630.0,0.00025782,3]
[405989071,1771507848915,-630.0,0.00025782,3]
[405989072,1771507848927,-630.0,0.00025782,3]
[405989073,1771507848936,-630.0,0.00025782,3]
[405989074,1771507848945,-299.0834778,0.00025782,3]
[405989075,1771507848954,-350.0,0.00025782,3]
[405989076,1771507848964,-630.0,0.00025782,3]
[405989077,1771507848974,-350.0,0.00025782,3]
[405989078,1771507848983,-350.0,0.00025782,3]
[405989079,1771507848992,-460.20338763,0.00025782,3]
[405989080,1771507849002,-346.0,0.000258,2]
[405989081,1771507849014,-200.627429,0.000259,2]
[405989082,1771507849027,-168.0,0.00025949,2]
[405989083,1771507849037,-155.0,0.00025952,2]
[405989084,1771507849048,-800.0,0.00025955,2]
[405989085,1771507849057,-800.0,0.00025963,2]
[405989086,1771507849066,-482220.11641115,0.00025973,2]
[405989087,1771507849075,-66899.034271,0.00026,30]
[405989088,1771507849084,-167.0,0.00026017,120]
[405989089,1771507849094,-580.0,0.00026028,10]
[405989090,1771507849103,-168.0,0.00026029,2]
[405989091,1771507849112,-800.0,0.00026033,2]
[405989092,1771507849121,-487.12058253,0.0002606,2]
[405989093,1771507849130,-800.0,0.0002609,2]
[405989094,1771507849139,-86635.11,0.000261,2]
[405989095,1771507849148,-168.0,0.00026101,2]
[405989096,1771507849158,-168.0,0.00026115,2]
[405989097,1771507849167,-240.0,0.00026228,120]
[405989098,1771507849175,-2000.0,0.0002625,7]
[405989099,1771507849184,-168.0,0.00026253,2]
[405989100,1771507849194,-948.96487019,0.00026438,2]
[405989101,1771507849204,-344.62,0.00026542,3]
[405989102,1771507849213,-168.0,0.00026676,2]
[405989103,1771507849223,-689.26,0.00026703,3]
[405989104,1771507849233,-600.0,0.00026722,30]
[405989105,1771507849242,-1668.18980931,0.00026972,2]
[405989106,1771507849251,-688.0,0.00027018,10]
[405989107,1771507849260,-168.0,0.00027104,2]
[405989108,1771507849270,-168.0,0.00027135,2]
[405989109,1771507849281,-168.0,0.00027199,2]
[405989110,1771507849290,-3542.5094157,0.0002726,6]
[405989111,1771507849299,-312.0,0.000273,2]
[405989112,1771507849308,-490.82,0.000273,14]
[405989113,1771507849318,-333.42566446,0.00027323,2]
[405989114,1771507849326,-150.0,0.00027397,5]
[405989115,1771507849336,-2000.0,0.000275,7]
[405989116,1771507849345,-158.02,0.000275,2]
[405989117,1771507849353,-402.0,0.00027607,3]
[405989118,1771507849362,-86635.11,0.000277,2]
[405989119,1771507849371,-2954.46538708,0.00027806,2]
[405989120,1771507849381,-1613.0,0.00027835,2]
[405989121,1771507849391,-250.60919672,0.00027945,5]
[405989122,1771507849400,-1000.0,0.00028,2]
[405989123,1771507849410,-2134.0,0.00028,10]
[405989124,1771507849424,-2222.40712829,0.00028001,2]
[405989125,1771507849433,-407.0,0.0002804,3]
[405989126,1771507849443,-713.0,0.0002804,3]
[405989127,1771507849452,-165.03,0.00028145,2]
[405989128,1771507849461,-316.04,0.00028167,2]
[405989129,1771507849471,-714.0,0.00028338,3]
[405989130,1771507849480,-715.0,0.0002839,3]
[405989131,1771507849489,-1830.45309779,0.00028408,5]
[405989132,1771507849499,-402.0,0.00028436,3]
[405989133,1771507849508,-158.02,0.00028551,2]
[405989134,1771507849518,-152.48764464,0.00028555,5]
[405989135,1771507849528,-181.0,0.00028585,2]
[405989136,1771507849537,-5152.25,0.000286,2]
[405989137,1771507849546,-158.1969944,0.000287,2]
[405989138,1771507849555,-1459.97269501,0.0002875,7]
[405989139,1771507849567,-714.0,0.00028774,3]
[405989140,1771507849577,-1614.59278427,0.00028806,2]
[405989141,1771507849587,-2603.94003047,0.0002895,2]
[405989142,1771507849596,-326.70015255,0.00028966,110]
[405989143,1771507849606,-2106.7287204,0.00028996,2]
[405989144,1771507849617,-4389.4027669,0.00028996,2]
[405989145,1771507849626,-1307130.07154931,0.00029,2]
[405989146,1771507849636,-175974.74361376,0.00029,2]
[405989147,1771507849646,-221386.07194354,0.00029,2]
[405989148,1771507849655,-2528935.28241881,0.00029,2]
[405989149,1771507849664,-714.0,0.00029034,3]
[405989150,1771507849673,-401.0,0.00029188,3]
[405989151,1771507849682,-160.0,0.00029199,4]
[405989152,1771507849691,-160.0,0.00029199,5]
[405989153,1771507849700,-86635.11,0.000292,2]
[405989154,1771507849709,-339.0,0.000293,2]
[405989155,1771507849718,-164.0,0.00029312,3]
[405989156,1771507849727,-720.0,0.00029394,30]
[405989157,1771507849736,-402.0,0.00029458,3]
[405989158,1771507849745,-402.0,0.00029585,3]
[405989159,1771507849755,-11366.90080244,0.0002965,2]
[405989160,1771507849764,-2593.47481438,0.00029741,5]
[405989161,1771507849775,-470.0747167,0.00029757,2]
[405989162,1771507849784,-979.4081423,0.00029757,2]
[405989163,1771507849793,-4611.73581514,0.00029845,2]
[405989164,1771507849802,-1150.0,0.0002987,2]
[405989165,1771507849811,-1150.0,0.0002987,2]
[405989166,1771507849821,-1150.0,0.0002987,2]
[405989167,1771507849911,-1150.0,0.0002987,2]
[405989168,1771507849920,-1119.0,0.0002987,2]
[405989169,1771507849930,-350.0,0.0002987,2]
[405989170,1771507849939,-350.0,0.0002987,2]
[405989171,1771507849948,-350.0,0.0002987,2]
[405989172,1771507849957,-350.0,0.0002987,2]
[405989173,1771507849966,-290.0,0.0002987,2]
[405989174,1771507849975,-4164.917,0.000299,2]
[405989175,1771507849984,-669.4593935,0.000299,2]
[405989176,1771507849994,-5152.25,0.000299,2]
[405989177,1771507850003,-500.0,0.0003,30]
[405989178,1771507850013,-320.0,0.0003,2]
[405989179,1771507850021,-270.93825708,0.0003,2]
[405989180,1771507850031,-232.0,0.0003,14]
[405989181,1771507850040,-27134.14373084,0.0003,2]
[405989182,1771507850049,-465.0,0.0003,30]
[405989183,1771507850058,-569.37171399,0.0003,30]
[405989184,1771507850067,-165.46,0.0003,5]
[405989185,1771507850076,-25000.0,0.0003,4]
[405989186,1771507850086,-11282.0,0.0003,2]
[405989187,1771507850095,-150.0,0.0003,7]
[405989188,1771507850104,-500000.0,0.0003,30]
[405989189,1771507850113,-23953.54168991,0.0003,3]
[405989190,1771507850122,-743.60641596,0.0003,3]
[405989191,1771507850131,-1338.36,0.0003,2]
[405989192,1771507850140,-300.0,0.0003,120]
[405989193,1771507850149,-5700.0,0.0003,2]
[405989194,1771507850158,-743.60641596,0.0003,3]
[405989195,1771507850166,-1013.59,0.0003,30]
[405989196,1771507850175,-7286.81734558,0.0003,2]
[405989197,1771507850184,-11091.36520405,0.0003,7]
[405989198,1771507850193,-150.0,0.0003013,2]
[405989199,1771507850202,-2000.0,0.00030137,2]
[405989200,1771507850211,-2000.0,0.00030137,2]
[405989201,1771507850220,-2000.0,0.00030137,2]
[405989202,1771507850229,-2000.0,0.00030137,2]
[405989203,1771507850239,-2000.0,0.00030137,2]
[405989204,1771507850250,-2000.0,0.00030137,2]
[405989205,1771507850260,-2000.0,0.00030137,2]
[405989206,1771507850269,-2000.0,0.00030137,2]
[405989207,1771507850279,-2000.0,0.00030137,2]
[405989208,1771507850288,-2000.0,0.00030137,2]
[405989209,1771507850297,-2000.0,0.00030137,2]
[405989210,1771507850307,-2000.0,0.00030137,2]
[405989211,1771507850317,-2000.0,0.00030137,2]
[405989212,1771507850326,-2000.0,0.00030137,2]
[405989213,1771507850336,-2000.0,0.00030137,2]
[405989214,1771507850345,-2000.0,0.00030137,2]
[405989215,1771507850356,-256.07613681,0.00030137,90]
[405989216,1771507850367,-167.97825383,0.00030139,120]
[405989217,1771507850377,-167.72,0.000302,7]
[405989218,1771507850388,-983.0,0.00030371,2]
[405989219,1771507850399,-2222.40712829,0.00030506,2]
[405989220,1771507850409,-3088.65841586,0.00030881,2]
[405989221,1771507850419,-1013.59,0.000309,30]
[405989222,1771507850428,-307.4464618,0.0003099,2]
[405989223,1771507850438,-487.93676728,0.00031,2]
[405989224,1771507850447,-5023.0,0.00031,2]
[405989225,1771507850456,-1806.84960159,0.00031,7]
[405989226,1771507850465,-1806.84960159,0.00031,7]
[405989227,1771507850474,-201.59561344,0.000313,2]
[405989228,1771507850483,-173.78,0.000313,7]
[405989229,1771507850492,-86635.11,0.000313,2]
[405989230,1771507850502,-482.0,0.000314,120]
[405989231,1771507850511,-166.405092,0.00031521,60]
[405989232,1771507850520,-500.0,0.0003175,2]
[405989233,1771507850530,-1013.59,0.000318,30]
[405989234,1771507850540,-44150.28074955,0.000319,2]
[405989235,1771507850549,-1950.0,0.000319,12]
[405989236,1771507850558,-1950.0,0.000319,12]
[405989237,1771507850572,-1950.0,0.000319,12]
[405989238,1771507850581,-1950.0,0.000319,12]
[405989239,1771507850591,-1733.0,0.000319,12]
[405989240,1771507850600,-700.0,0.000319,12]
[405989241,1771507850611,-700.0,0.000319,12]
[405989242,1771507850620,-700.0,0.000319,12]
[405989243,1771507850629,-700.0,0.000319,12]
[405989244,1771507850639,-580.0,0.000319,12]
[405989245,1771507850648,-201.57554869,0.00032,2]
[405989246,1771507850658,-166.0,0.00032,14]
[405989247,1771507850667,-300.0,0.00032,120]
[405989248,1771507850676,-5152.25,0.00032,2]
[405989249,1771507850685,-439971.9264,0.0003222,30]
[405989250,1771507850694,-864.0,0.00032334,30]
[405989251,1771507850703,-714.0,0.00032336,11]
[405989252,1771507850712,-490.82,0.000324,14]
[405989253,1771507850722,-400.0,0.000326,2]
[405989254,1771507850732,-585.0,0.00032656,11]
[405989255,1771507850742,-1013.59,0.000327,120]
[405989256,1771507850750,-370767.07610532,0.00032876,19]
[405989257,1771507850760,-500.0,0.00032876,19]
[405989258,1771507850769,-596.63068129,0.00032876,19]
[405989259,1771507850779,-500.0,0.00032876,19]
[405989260,1771507850788,-500.0,0.00032876,19]
[405989261,1771507850798,-493.83422792,0.00032876,19]
[405989262,1771507850807,-578.51353519,0.00032876,19]
[405989263,1771507850817,-500.0,0.00032876,19]
[405989264,1771507850826,-500.0,0.00032876,14]
[405989265,1771507850835,-500.0,0.00032876,19]
[405989266,1771507850844,-157.79633004,0.00032876,19]
[405989267,1771507850853,-224.80979282,0.00032876,19]
[405989268,1771507850862,-500.0,0.00032876,19]
[405989269,1771507850871,-500.0,0.00032876,19]
[405989270,1771507850880,-173.18707587,0.00032876,19]
[405989271,1771507850890,-500.0,0.00032876,19]
[405989272,1771507850900,-500.0,0.00032876,19]
[405989273,1771507850909,-199.44554123,0.00032876,19]
[405989274,1771507850918,-500.0,0.00032876,19]
[405989275,1771507850927,-604.5352281,0.00032876,19]
[405989276,1771507850938,-500.0,0.00032876,19]
[405989277,1771507850947,-500.0,0.00032876,7]
[405989278,1771507850965,-500.0,0.00032876,19]
[405989279,1771507850976,-201.93561056,0.00032876,19]
[405989280,1771507850985,-500.0,0.00032876,7]
[405989281,1771507850995,-155.85032574,0.00032876,19]
[405989282,1771507851004,-542.43,0.00032876,19]
[405989283,1771507851013,-500.0,0.00032876,19]
[405989284,1771507851023,-180.99041224,0.00032876,19]
[405989285,1771507851033,-500.0,0.00032876,19]
[405989286,1771507851043,-500.0,0.00032876,19]
[405989287,1771507851053,-532.58794629,0.00032876,19]
[405989288,1771507851062,-500.0,0.00032876,19]
[405989289,1771507851071,-1000.0,0.00032876,2]
[405989290,1771507851081,-500.0,0.00032876,19]
[405989291,1771507851090,-500.0,0.00032876,19]
[405989292,1771507851100,-500.0,0.00032876,19]
[405989293,1771507851111,-500.0,0.00032876,19]
[405989294,1771507851121,-500.0,0.00032876,8]
[405989295,1771507851132,-500.0,0.00032876,19]
[405989296,1771507851142,-500.0,0.00032876,19]
[405989297,1771507851152,-317.86061045,0.00032876,19]
[405989298,1771507851161,-500.0,0.00032876,19]
[405989299,1771507851171,-500.0,0.00032876,19]
[405989300,1771507851180,-500.0,0.00032876,19]
[405989301,1771507851189,-199.69649068,0.00032876,19]
[405989302,1771507851198,-500.0,0.00032876,19]
[405989303,1771507851208,-500.0,0.00032876,19]
[405989304,1771507851217,-304.37452406,0.00032876,19]
[405989305,1771507851228,-500.0,0.00032876,19]
[405989306,1771507851239,-500.0,0.00032876,19]
[405989307,1771507851249,-1533.22,0.00032876,19]
[405989308,1771507851259,-500.0,0.00032876,19]
[405989309,1771507851268,-271.5852377,0.00032876,19]
[405989310,1771507851277,-500.0,0.00032876,19]
[405989311,1771507851286,-418.7873815,0.00032876,19]
[405989312,1771507851296,-275.70304391,0.00032876,19]
[405989313,1771507851305,-3997.29,0.00032876,19]
[405989314,1771507851314,-521.13531416,0.00032876,19]
[405989315,1771507851323,-226.43413297,0.00032876,19]
[405989316,1771507851332,-302.53368282,0.00032876,19]
[405989317,1771507851341,-500.0,0.00032876,19]
[405989318,1771507851350,-500.0,0.00032876,19]
[405989319,1771507851359,-500.0,0.00032876,19]
[405989320,1771507851369,-500.0,0.00032876,19]
[405989321,1771507851378,-500.0,0.00032876,19]
[405989322,1771507851387,-599.06,0.00032876,19]
[405989323,1771507851397,-500.0,0.00032876,19]
[405989324,1771507851406,-463.51708316,0.00032876,19]
[405989325,1771507851416,-500.0,0.00032876,19]
[405989326,1771507851425,-1000.0,0.00032876,2]
[405989327,1771507851434,-186.99629164,0.00032876,19]
[405989328,1771507851444,-214.66529476,0.00032876,19]
[405989329,1771507851454,-252.46719572,0.00032876,19]
[405989330,1771507851463,-519.9,0.00032876,19]
[405989331,1771507851474,-166.71064084,0.00032876,19]
[405989332,1771507851483,-558.69,0.00032876,19]
[405989333,1771507851492,-175.28371401,0.00032876,19]
[405989334,1771507851502,-500.0,0.00032876,19]
[405989335,1771507851511,-203.08766431,0.00032876,19]
[405989336,1771507851520,-175.27767593,0.00032876,19]
[405989337,1771507851530,-500.0,0.00032876,19]
[405989338,1771507851539,-215.11315119,0.00032876,19]
[405989339,1771507851549,-500.0,0.00032876,19]
[405989340,1771507851558,-475.07265534,0.00032876,19]
[405989341,1771507851569,-500.0,0.00032876,19]
[405989342,1771507851579,-500.0,0.00032876,19]
[405989343,1771507851588,-495.93959992,0.00032876,19]
[405989344,1771507851597,-500.0,0.00032876,19]
[405989345,1771507851606,-500.0,0.00032876,19]
[405989346,1771507851617,-500.0,0.00032876,19]
[405989347,1771507851627,-580.44656416,0.00032876,14]
[405989348,1771507851636,-500.0,0.00032876,19]
[405989349,1771507851647,-533.00699046,0.00032876,19]
[405989350,1771507851656,-599.81,0.00032876,19]
[405989351,1771507851666,-500.0,0.00032876,19]
[405989352,1771507851675,-500.0,0.00032876,19]
[405989353,1771507851684,-542.70372724,0.00032876,19]
[405989354,1771507851693,-500.0,0.00032876,19]
[405989355,1771507851703,-500.0,0.00032876,19]
[405989356,1771507851711,-500.0,0.00032876,19]
[405989357,1771507851721,-345.04186508,0.00032876,19]
[405989358,1771507851730,-500.0,0.00032876,19]
[405989359,1771507851739,-506.49198382,0.00032876,19]
[405989360,1771507851748,-482.12555518,0.00032876,19]
[405989361,1771507851757,-500.0,0.00032876,19]
[405989362,1771507851766,-528.33338185,0.00032876,19]
[405989363,1771507851775,-500.0,0.00032876,19]
[405989364,1771507851785,-527.43536431,0.00032876,3]
[405989365,1771507851798,-217.02453954,0.00032876,19]
[405989366,1771507851808,-500.0,0.00032876,19]
[405989367,1771507851817,-201.22438957,0.00032876,19]
[405989368,1771507851936,-508.32946553,0.00032876,19]
[405989369,1771507851945,-595.2477289,0.00032876,19]
[405989370,1771507851954,-500.0,0.00032876,19]
[405989371,1771507851964,-500.0,0.00032876,19]
[405989372,1771507851973,-533.30300251,0.00032876,19]
[405989373,1771507851982,-267.63036476,0.00032876,19]
[405989374,1771507851991,-582.19342612,0.00032876,19]
[405989375,1771507852000,-566.8362067,0.00032876,19]
[405989376,1771507852008,-1496.35,0.00032876,19]
[405989377,1771507852017,-500.0,0.00032876,19]
[405989378,1771507852026,-483.19318963,0.00032876,19]
[405989379,1771507852035,-522.0000816,0.00032876,19]
[405989380,1771507852044,-500.0,0.00032876,19]
[405989381,1771507852054,-525.36987841,0.00032876,19]
[405989382,1771507852063,-540.23305421,0.00032876,19]
[405989383,1771507852072,-565.80842619,0.00032876,19]
[405989384,1771507852082,-524.55221471,0.00032876,19]
[405989385,1771507852091,-539.50506227,0.00032876,19]
[405989386,1771507852100,-562.99175423,0.00032876,19]
[405989387,1771507852109,-4151.89,0.00032876,7]
[405989388,1771507852118,-551.86890867,0.00032876,19]
[405989389,1771507852127,-500.0,0.00032876,2]
[405989390,1771507852136,-852.41,0.00032876,19]
[405989391,1771507852146,-336.85348543,0.00032876,19]
[405989392,1771507852155,-194.86429313,0.00032876,19]
[405989393,1771507852164,-519.99561386,0.00032876,19]
[405989394,1771507852173,-559.70470055,0.00032876,19]
[405989395,1771507852183,-634.55547809,0.00032876,19]
[405989396,1771507852192,-680.68,0.00032876,19]
[405989397,1771507852201,-500.0,0.00032876,19]
[405989398,1771507852211,-500.0,0.00032876,19]
[405989399,1771507852220,-166.80131509,0.00032876,19]
[405989400,1771507852229,-586.50049269,0.00032876,19]
[405989401,1771507852238,-190.14886492,0.00032876,19]
[405989402,1771507852247,-193.05198813,0.00032876,19]
[405989403,1771507852256,-547.809954,0.00032876,19]
[405989404,1771507852265,-500.0,0.00032876,19]
[405989405,1771507852275,-500.0,0.00032876,19]
[405989406,1771507852284,-500.0,0.00032876,2]
[405989407,1771507852293,-637.44,0.00032876,19]
[405989408,1771507852302,-500.0,0.00032876,19]
[405989409,1771507852311,-164.36249369,0.00032876,19]
[405989410,1771507852320,-500.0,0.00032876,19]
[405989411,1771507852330,-569.76218316,0.00032876,19]
[405989412,1771507852338,-500.0,0.00032876,19]
[405989413,1771507852348,-422.66636735,0.00032876,19]
[405989414,1771507852357,-240.88757184,0.00032876,19]
[405989415,1771507852366,-500.0,0.00032876,19]
[405989416,1771507852377,-237.33925985,0.00032876,19]
[405989417,1771507852387,-542.60262076,0.00032876,19]
[405989418,1771507852398,-500.0,0.00032876,19]
[405989419,1771507852407,-271.52804072,0.00032876,19]
[405989420,1771507852417,-500.0,0.00032876,19]
[405989421,1771507852430,-500.0,0.00032876,19]
[405989422,1771507852440,-500.0,0.00032876,19]
[405989423,1771507852450,-328.67976576,0.00032876,19]
[405989424,1771507852460,-3623.21,0.00032876,19]
[405989425,1771507852469,-479.33519795,0.00032876,19]
[405989426,1771507852479,-166.72787961,0.00032876,19]
[405989427,1771507852488,-500.0,0.00032876,19]
[405989428,1771507852498,-500.0,0.00032876,19]
[405989429,1771507852508,-399.08072567,0.00032876,19]
[405989430,1771507852517,-500.0,0.00032876,19]
[405989431,1771507852528,-680.95,0.00032876,19]
[405989432,1771507852538,-1050.37,0.00032876,19]
[405989433,1771507852548,-500.0,0.00032876,19]